bitfinex/quotes_BTCUSD_20230405
["timestamp","ask_amount","ask_price","bid_price","bid_amount"]
[1680685375091,0.0085,28541.0,28540.0,2.5979846]
[1680685375315,0.0355,28541.0,28540.0,2.5989846]
[1680685382183,0.087794,28541.0,28540.0,2.5989846]
[1680685382792,1.29645953,28541.0,28540.0,2.5989846]
[1680685383429,1.29645953,28541.0,28540.0,2.59861633]
[1680685383430,1.34718253,28541.0,28540.0,2.59861633]
[1680685384423,1.29645953,28541.0,28540.0,2.59861633]
[1680685385274,1.34853153,28541.0,28540.0,2.59861633]
[1680685389565,1.29645953,28541.0,28540.0,2.59861633]
[1680685389781,1.34880853,28541.0,28540.0,2.59861633]
[1680685389904,1.34765953,28541.0,28540.0,2.59861633]
[1680685390318,1.34695753,28541.0,28540.0,2.59861633]
[1680685391146,1.29645953,28541.0,28540.0,2.59861633]
[1680685392308,1.29661979,28541.0,28540.0,2.59849633]
[1680685392477,1.29645953,28541.0,28540.0,2.59861633]
[1680685404581,0.02689961,28541.0,28540.0,2.84697216]
[1680685404844,0.02689961,28541.0,28540.0,3.11047085]
[1680685405043,0.02689961,28541.0,28540.0,3.46518141]
[1680685405273,0.02689961,28541.0,28540.0,3.25515389]
[1680685405711,0.10722386,28547.0,28540.0,3.46379203]
[1680685405938,0.00016026,28550.0,28546.0,0.073]
[1680685406169,0.35487082,28550.0,28546.0,0.080006]
[1680685406631,0.0085,28549.0,28546.0,0.080006]
[1680685406840,0.00866026,28549.0,28546.0,0.080006]
[1680685407126,0.35070861,28551.0,28546.0,0.080006]
[1680685407127,0.00866026,28550.0,28546.0,0.080006]
[1680685407327,0.00866026,28550.0,28547.0,0.0721]
[1680685408148,0.03066026,28550.0,28547.0,0.0721]
[1680685408351,0.00866026,28550.0,28547.0,0.0721]
[1680685408546,0.027,28550.0,28547.0,0.0731]
[1680685408748,0.0085,28549.0,28547.0,0.0721]
[1680685408962,0.027,28550.0,28547.0,0.0731]
[1680685409159,0.0085,28549.0,28547.0,0.0731]
[1680685409304,0.0085,28549.0,28547.0,0.0721]
[1680685409983,0.0085,28550.0,28547.0,0.0721]
[1680685410226,0.0355,28550.0,28547.0,0.0731]
[1680685410435,0.00866026,28550.0,28547.0,0.0721]
[1680685410663,0.0085,28550.0,28547.0,0.0721]
[1680685411054,0.0085,28550.0,28546.0,0.073]
[1680685411255,0.0085,28550.0,28547.0,0.001]
[1680685411477,0.0355,28550.0,28547.0,0.001]
[1680685417317,0.0355,28550.0,28547.0,0.008005]
[1680685423874,0.0355,28550.0,28546.0,0.07594458]
[1680685424112,0.0355,28550.0,28549.0,0.06602853]
[1680685424342,0.0355,28550.0,28549.0,0.03393608]
[1680685424961,0.0085,28550.0,28549.0,0.03973608]
[1680685425197,0.0085,28552.0,28549.0,0.03885876]
[1680685425445,0.022,28550.0,28549.0,0.02484876]
[1680685425687,0.0085,28550.0,28549.0,0.02484876]
[1680685425912,0.0355,28550.0,28549.0,0.02584876]
[1680685426132,0.0085,28550.0,28549.0,0.02484876]
[1680685426316,0.0085,28550.0,28549.0,0.02584876]
[1680685426556,0.0355,28552.0,28549.0,0.02584876]
[1680685426776,0.0085,28552.0,28550.0,0.007005]
[1680685427197,0.0085,28552.0,28551.0,0.0062]
[1680685428294,0.0355,28552.0,28551.0,0.0072]
[1680685433281,0.0355,28552.0,28551.0,0.014205]
[1680685439725,0.0355,28552.0,28551.0,0.36891556]
[1680685440312,0.0355,28552.0,28551.0,0.36791556]
[1680685440313,0.0085,28552.0,28551.0,0.36791556]
[1680685440525,0.0085,28552.0,28551.0,0.36881376]
[1680685440526,0.0305,28552.0,28551.0,0.36881376]
[1680685440734,0.0085,28552.0,28551.0,0.36080876]
[1680685440883,0.0175,28552.0,28551.0,0.36180876]
[1680685442583,0.0175,28552.0,28551.0,0.36881376]
[1680685442791,0.0175,28552.0,28551.0,0.36180876]
[1680685449431,0.0175,28552.0,28551.0,0.001]
[1680685449641,0.0175,28552.0,28551.0,0.0166]
[1680685450898,0.0175,28552.0,28551.0,0.01648408]
[1680685453701,0.0175,28552.0,28551.0,0.0099]
[1680685455372,0.3691915,28552.0,28551.0,0.0099]
[1680685455615,0.01766026,28552.0,28551.0,0.0099]
[1680685455888,0.0175,28552.0,28551.0,0.0099]
[1680685461545,0.0175,28552.0,28551.0,0.00979451]
[1680685465348,0.40765509,28552.0,28551.0,0.00979451]
[1680685466590,0.0175,28552.0,28551.0,0.00979451]
[1680685469040,0.0421,28552.0,28551.0,0.00979451]
[1680685469872,0.0421,28552.0,28551.0,0.09364941]
[1680685470281,0.0421,28552.0,28551.0,0.00979451]
[1680685471889,0.0421,28552.0,28551.0,0.00958244]
[1680685472726,0.0421,28552.0,28551.0,0.00680615]
[1680685473488,0.0421,28552.0,28551.0,0.09066105]
[1680685475230,0.0421,28552.0,28551.0,0.0857735]
[1680685477758,0.0421,28552.0,28550.0,0.22141948]
[1680685478024,0.0421,28552.0,28551.0,0.01722336]
[1680685480578,0.0294,28552.0,28551.0,0.01722336]
[1680685486359,0.0294,28552.0,28550.0,0.04991969]
[1680685486599,0.0294,28552.0,28551.0,0.0069]
[1680685487993,0.0294,28552.0,28551.0,0.09090806]
[1680685489156,0.0175,28552.0,28551.0,0.09090806]
[1680685489403,0.0175,28552.0,28551.0,0.09058252]
[1680685490537,0.0175,28552.0,28551.0,0.00657446]
[1680685490766,0.0175,28552.0,28551.0,0.09058357]
[1680685493079,0.0175,28552.0,28551.0,0.09058373]
[1680685494037,0.34090804,28552.0,28551.0,0.09058373]
[1680685494256,0.3529683,28552.0,28551.0,0.09058373]
[1680685494747,0.35280804,28552.0,28551.0,0.09058373]
[1680685495195,0.3529683,28552.0,28551.0,0.09058373]
[1680685495635,0.3529683,28552.0,28551.0,0.07694331]
[1680685495860,0.3529683,28552.0,28551.0,0.08984331]
[1680685496069,0.3439683,28552.0,28551.0,0.08984331]
[1680685496279,0.3709683,28552.0,28551.0,0.08984331]
[1680685496473,0.3439683,28552.0,28551.0,0.08984331]
[1680685496733,0.3709683,28552.0,28551.0,0.08984331]
[1680685496967,0.3709683,28552.0,28551.0,0.0129]
[1680685497813,0.3709325,28552.0,28550.0,0.11858692]
[1680685498062,0.0128,28551.0,28550.0,0.11858692]
[1680685498284,0.003,28551.0,28550.0,0.11858692]
[1680685498495,0.003,28551.0,28550.0,0.12438692]
[1680685498907,0.003,28551.0,28550.0,0.11890174]
[1680685499120,0.03,28551.0,28550.0,0.11134213]
[1680685500454,0.0414,28551.0,28550.0,0.11134213]
[1680685501515,0.4104823,28551.0,28550.0,0.11134213]
[1680685501710,0.41064256,28551.0,28550.0,0.11134213]
[1680685503174,0.04156026,28551.0,28550.0,0.11134213]
[1680685503385,0.0414,28551.0,28550.0,0.11134213]
[1680685508495,0.0414,28551.0,28550.0,0.11123113]
[1680685509838,0.46064064,28551.0,28550.0,0.11123113]
[1680685510054,0.4608009,28551.0,28550.0,0.11123113]
[1680685510497,0.04156026,28551.0,28550.0,0.11123113]
[1680685510709,0.0414,28551.0,28550.0,0.11123113]
[1680685510929,0.0414,28551.0,28550.0,0.10610653]
[1680685511345,0.0414,28551.0,28550.0,0.09834856]
[1680685514253,0.0414,28551.0,28550.0,0.0791808]
[1680685515462,0.0355,28551.0,28550.0,0.18051481]
[1680685516122,0.0355,28551.0,28550.0,0.16430207]
[1680685516339,0.0355,28551.0,28550.0,0.18270707]
[1680685516971,0.0085,28551.0,28550.0,0.17999363]
[1680685517179,0.022,28551.0,28550.0,0.17999363]
[1680685517391,0.0085,28551.0,28550.0,0.17999363]
[1680685517627,0.0165,28551.0,28550.0,0.17999363]
[1680685518065,0.0085,28551.0,28550.0,0.17999363]
[1680685518276,0.022,28551.0,28550.0,0.17999363]
[1680685518534,0.0085,28551.0,28550.0,0.17999363]
[1680685518745,0.0165,28551.0,28550.0,0.17999363]
[1680685518956,0.0085,28551.0,28550.0,0.17999363]
[1680685519166,0.0085,28552.0,28550.0,0.17999363]
[1680685519377,0.0085,28552.0,28551.0,0.08399684]
[1680685520417,0.0235,28552.0,28551.0,0.09729684]
[1680685520835,0.0235,28552.0,28551.0,0.0133]
[1680685521080,0.0235,28552.0,28551.0,0.09729612]
[1680685521289,0.0235,28552.0,28551.0,0.09639078]
[1680685525982,1.28394195,28552.0,28551.0,0.18039022]
[1680685526198,1.28406641,28552.0,28551.0,0.18039022]
[1680685526409,0.0235,28552.0,28551.0,0.39002836]
[1680685526629,0.0235,28552.0,28551.0,0.18039022]
[1680685528703,0.0235,28552.0,28551.0,0.30634055]
[1680685528965,0.37030524,28552.0,28551.0,0.13840499]
[1680685529196,0.3703397,28552.0,28550.0,0.11984361]
[1680685529433,0.37030524,28552.0,28551.0,0.0177]
[1680685529639,0.3704655,28552.0,28551.0,0.0177]
[1680685533134,0.3619655,28552.0,28551.0,0.0177]
[1680685533361,0.01516026,28552.0,28551.0,0.024705]
[1680685533588,0.015,28552.0,28551.0,0.23434314]
[1680685534856,0.015,28552.0,28551.0,0.024705]
[1680685535580,0.015,28552.0,28551.0,0.02215442]
[1680685536532,0.015,28552.0,28551.0,0.52346498]
[1680685537896,0.015,28552.0,28551.0,0.52364498]
[1680685538113,0.4,28555.0,28551.0,0.52364498]
[1680685538328,0.4,28555.0,28554.0,0.20956861]
[1680685538537,0.40866026,28555.0,28554.0,0.21657261]
[1680685538745,0.40866026,28555.0,28554.0,0.09083144]
[1680685538953,0.4085,28555.0,28554.0,0.09083144]
[1680685539290,0.40866026,28555.0,28554.0,0.11421333]
[1680685539495,0.40966026,28555.0,28554.0,0.11921333]
[1680685539690,0.40960026,28555.0,28554.0,0.11921333]
[1680685539907,0.40944,28555.0,28554.0,0.11921333]
[1680685540961,0.40944,28555.0,28554.0,0.035504]
[1680685547685,0.40944,28555.0,28554.0,0.215504]
[1680685549520,0.40944,28555.0,28554.0,0.20856]
[1680685549729,0.40944,28555.0,28554.0,0.2085]
[1680685550657,0.40944,28555.0,28554.0,0.215504]
[1680685551546,0.40944,28555.0,28554.0,0.2085]
[1680685552438,0.39944,28555.0,28554.0,0.2085]
[1680685552907,0.39944,28555.0,28554.0,0.20856]
[1680685553360,0.39944,28555.0,28554.0,0.215564]
[1680685555112,0.39944,28555.0,28554.0,0.215624]
[1680685555344,0.39944,28555.0,28554.0,0.215564]
[1680685556221,0.39944,28555.0,28554.0,0.215624]
[1680685557075,0.39944,28555.0,28554.0,0.215564]
[1680685557704,0.39944,28555.0,28554.0,0.215624]
[1680685558333,0.39944,28555.0,28554.0,0.215564]
[1680685559594,0.39944,28555.0,28554.0,0.215624]
[1680685560190,0.39944,28555.0,28554.0,0.215564]
[1680685560957,0.39944,28555.0,28554.0,0.29932158]
[1680685561178,0.0095,28555.0,28554.0,0.215624]
[1680685561394,0.0095,28555.0,28554.0,0.29926158]
[1680685561608,0.0095,28555.0,28554.0,0.215504]
[1680685561821,0.0095,28555.0,28554.0,0.29926158]
[1680685562035,0.0095,28555.0,28554.0,0.29716158]
[1680685564719,0.40918404,28555.0,28554.0,0.29716158]
[1680685564971,0.40918404,28555.0,28554.0,0.213404]
[1680685564972,0.4093443,28555.0,28554.0,0.213404]
[1680685565403,0.4093443,28555.0,28554.0,0.29716158]
[1680685568208,0.4093443,28555.0,28554.0,0.29705031]
[1680685568430,0.4093443,28555.0,28554.0,0.29004631]
[1680685568640,0.4093443,28555.0,28554.0,0.20628873]
[1680685570772,0.4093443,28555.0,28554.0,0.29004631]
[1680685573865,0.00976026,28555.0,28554.0,0.20628873]
[1680685574080,0.0011,28555.0,28554.0,0.20628873]
[1680685574310,0.38023832,28555.0,28554.0,0.20628873]
[1680685574525,0.44119258,28555.0,28554.0,0.20628873]
[1680685575199,0.38789858,28555.0,28554.0,0.20128873]
[1680685575404,0.38789858,28555.0,28554.0,0.20228873]
[1680685575405,0.46695058,28555.0,28554.0,0.20228873]
[1680685575617,0.46855858,28555.0,28554.0,0.19988873]
[1680685576312,0.41489858,28555.0,28554.0,0.19988873]
[1680685577974,0.46547758,28555.0,28554.0,0.19988873]
[1680685579203,0.41489858,28555.0,28554.0,0.19988873]
[1680685579676,0.76960914,28555.0,28554.0,0.19988873]
[1680685579887,0.82033814,28555.0,28554.0,0.19988873]
[1680685580299,0.82033814,28555.0,28554.0,0.181]
[1680685582761,0.76960914,28555.0,28554.0,0.181]
[1680685583027,0.39047082,28555.0,28554.0,0.181]
[1680685583742,0.82493463,28555.0,28554.0,0.181]
[1680685583972,0.82493463,28555.0,28554.0,0.18088629]
[1680685585127,0.82493463,28555.0,28554.0,0.18088629]
[1680685585371,0.82493463,28555.0,28554.0,0.18188629]
[1680685599090,0.82493463,28555.0,28554.0,0.18177318]
[1680685607227,0.03576026,28555.0,28554.0,0.18177318]
[1680685607448,0.0356,28555.0,28554.0,0.18177318]
[1680685611305,0.40352251,28555.0,28554.0,0.18177318]
[1680685611514,0.40368277,28555.0,28554.0,0.18177318]
[1680685611731,0.40368277,28555.0,28554.0,0.18166402]
[1680685618349,0.40358277,28555.0,28554.0,0.18166402]
[1680685619326,0.80995233,28555.0,28554.0,0.18166402]
[1680685629131,0.81005233,28555.0,28554.0,0.18166402]
[1680685632030,0.81005233,28555.0,28554.0,0.18154842]
[1680685632671,0.80995233,28555.0,28554.0,0.18154842]
[1680685632891,0.81005233,28555.0,28554.0,0.18154842]
[1680685635271,0.75839333,28555.0,28554.0,0.18154842]
[1680685642462,0.75810472,28555.0,28554.0,0.18154842]
[1680685644406,0.76665315,28555.0,28554.0,0.18154842]
[1680685648061,0.39873064,28555.0,28554.0,0.18154842]
[1680685651475,0.20839158,28554.0,28553.0,0.20967875]
[1680685651709,0.51940214,28554.0,28553.0,0.20949875]
[1680685651976,0.82450461,28554.0,28553.0,0.22509875]
[1680685652232,0.82450461,28554.0,28553.0,0.22521875]
[1680685652442,0.84650461,28554.0,28553.0,0.22621875]
[1680685654502,0.84650461,28554.0,28553.0,0.10035758]
[1680685656614,0.84640461,28554.0,28553.0,0.10035758]
[1680685662257,0.84260461,28554.0,28553.0,0.10035758]
[1680685665351,0.15451738,28554.0,28553.0,0.10035758]
[1680685665541,0.15439158,28554.0,28553.0,0.14234117]
[1680685666910,0.15439158,28554.0,28553.0,0.30999606]
[1680685667185,0.15439158,28554.0,28553.0,0.18425489]
[1680685667396,0.15439158,28554.0,28553.0,0.31026071]
[1680685668311,0.15439158,28554.0,28553.0,0.14260582]
[1680685669351,0.15439158,28554.0,28553.0,0.12600582]
[1680685669555,0.15439158,28554.0,28553.0,0.0229]
[1680685669883,0.58543667,28554.0,28553.0,0.0229]
[1680685670084,0.58559693,28554.0,28553.0,0.0229]
[1680685672355,0.58559693,28554.0,28553.0,0.10689662]
[1680685672780,0.58559693,28554.0,28553.0,0.0229]
[1680685677588,0.58559693,28554.0,28553.0,0.10689351]
[1680685678054,0.58532788,28554.0,28553.0,0.10689351]
[1680685678469,0.58532788,28554.0,28553.0,0.23288483]
[1680685678675,0.58532788,28554.0,28553.0,0.14901132]
[1680685678882,0.58532788,28554.0,28553.0,0.14889132]
[1680685679499,0.94003844,28554.0,28553.0,0.10689439]
[1680685680628,0.94003844,28554.0,28553.0,0.23288571]
[1680685680845,0.94003844,28554.0,28553.0,0.14901132]
[1680685681060,0.94003844,28554.0,28553.0,0.23288509]
[1680685681287,0.94003844,28554.0,28553.0,0.10701377]
[1680685681495,0.94003844,28554.0,28553.0,0.10689377]
[1680685683984,0.94003844,28554.0,28553.0,0.0229]
[1680685685024,0.91803844,28554.0,28553.0,0.0229]
[1680685685229,0.94503844,28554.0,28553.0,0.0229]
[1680685686090,0.94503844,28554.0,28553.0,0.10689377]
[1680685688031,0.94491927,28554.0,28553.0,0.10689377]
[1680685689058,0.94501927,28554.0,28553.0,0.10689377]
[1680685698037,0.94490814,28554.0,28553.0,0.10689377]
[1680685698692,0.51386305,28554.0,28553.0,0.10689377]
[1680685699118,0.51376305,28554.0,28553.0,0.10689377]
[1680685701704,0.51392331,28554.0,28552.0,0.0402353]
[1680685701949,0.51376305,28554.0,28553.0,0.0361]
[1680685702155,0.51392331,28554.0,28553.0,0.0361]
[1680685702362,0.97184133,28554.0,28553.0,0.0361]
[1680685702787,0.94484133,28554.0,28553.0,0.0361]
[1680685703004,0.96684133,28554.0,28553.0,0.0361]
[1680685703212,0.94484133,28554.0,28553.0,0.0361]
[1680685703423,0.97184133,28554.0,28553.0,0.0361]
[1680685708066,0.9716821,28554.0,28553.0,0.0361]
[1680685708316,0.97152184,28554.0,28553.0,0.0361]
[1680685711927,0.97152184,28554.0,28551.0,0.16783489]
[1680685711928,0.44138041,28553.0,28551.0,0.14261136]
[1680685712138,0.0085,28552.0,28551.0,0.14255136]
[1680685712355,0.41918041,28553.0,28551.0,0.14255136]
[1680685712356,0.41918041,28553.0,28552.0,0.0037]
[1680685713447,0.43418041,28553.0,28552.0,0.0037]
[1680685713653,0.41918041,28553.0,28552.0,0.0037]
[1680685713865,0.44118041,28553.0,28552.0,0.0037]
[1680685714285,0.44951391,28553.0,28552.0,0.0037]
[1680685718274,0.44940305,28553.0,28552.0,0.0037]
[1680685720952,0.44940305,28553.0,28552.0,0.12969968]
[1680685721382,0.44929168,28553.0,28552.0,0.12969968]
[1680685728348,0.44912781,28553.0,28552.0,0.12969968]
[1680685729195,0.45812781,28553.0,28552.0,0.12969968]
[1680685730024,0.45801749,28553.0,28552.0,0.12969968]
[1680685733163,0.45790586,28553.0,28552.0,0.12969968]
[1680685734245,0.45806612,28553.0,28552.0,0.0342]
[1680685735429,0.03966026,28553.0,28552.0,0.0342]
[1680685735642,0.49581595,28553.0,28552.0,0.0342]
[1680685735852,0.49597621,28553.0,28552.0,0.0342]
[1680685736085,0.03966026,28553.0,28552.0,0.0342]
[1680685736307,0.0395,28553.0,28552.0,0.0342]
[1680685736944,0.36206503,28553.0,28552.0,0.0342]
[1680685737129,0.36222529,28553.0,28552.0,0.0342]
[1680685738229,0.36205739,28553.0,28552.0,0.0342]
[1680685738419,0.36191452,28553.0,28552.0,0.0342]
[1680685738633,0.36179006,28553.0,28552.0,0.0342]
[1680685740130,0.38289006,28553.0,28552.0,0.0342]
[1680685740682,0.38289006,28553.0,28552.0,0.11821133]
[1680685740890,0.38289006,28553.0,28552.0,0.0342]
[1680685742338,0.38289006,28553.0,28552.0,0.11821098]
[1680685742551,0.38289006,28553.0,28552.0,0.0342]
[1680685742758,0.38289006,28553.0,28552.0,0.11821075]
[1680685742968,0.38289006,28553.0,28552.0,0.11821121]
[1680685743175,0.38289006,28553.0,28552.0,0.11821074]
[1680685743392,0.38289006,28553.0,28552.0,0.0342]
[1680685744217,0.3827797,28553.0,28552.0,0.11821076]
[1680685744420,0.3827797,28553.0,28552.0,0.0342]
[1680685744831,0.3827797,28553.0,28552.0,0.11821101]
[1680685744969,0.3827797,28553.0,28552.0,0.0342]
[1680685745169,0.3827797,28553.0,28552.0,0.16021784]
[1680685745378,0.3827797,28553.0,28552.0,0.24422832]
[1680685745574,0.3827797,28553.0,28552.0,0.24434832]
[1680685746335,0.3827797,28553.0,28552.0,0.11833048]
[1680685746593,0.36116503,28553.0,28552.0,0.11821048]
[1680685746804,0.38816503,28553.0,28552.0,0.11821048]
[1680685747010,0.74287559,28553.0,28552.0,0.11821048]
[1680685747674,0.74287559,28553.0,28552.0,0.24422832]
[1680685747890,0.74287559,28553.0,28552.0,0.24434832]
[1680685748330,0.74277461,28553.0,28552.0,0.24434832]
[1680685750272,0.74277461,28553.0,28552.0,0.11833048]
[1680685750494,0.74277461,28553.0,28552.0,0.11821048]
[1680685751561,0.74293487,28553.0,28550.0,0.21016562]
[1680685751750,0.42020958,28553.0,28552.0,0.0229]
[1680685751901,0.80942295,28553.0,28552.0,0.0229]
[1680685753114,0.80915148,28553.0,28552.0,0.0229]
[1680685755370,0.80931174,28553.0,28552.0,0.0229]
[1680685755579,0.80918594,28553.0,28552.0,0.0229]
[1680685755794,0.80915148,28553.0,28552.0,0.0229]
[1680685758472,0.8090322,28553.0,28552.0,0.0229]
[1680685760218,0.7990322,28553.0,28552.0,0.0229]
[1680685760678,0.7990322,28553.0,28552.0,0.14891954]
[1680685761375,0.79915666,28553.0,28552.0,0.14891954]
[1680685761633,0.7990322,28553.0,28552.0,0.14891954]
[1680685764623,0.7990322,28553.0,28552.0,0.23293255]
[1680685764860,0.7990322,28553.0,28552.0,0.23299255]
[1680685765092,0.7990322,28553.0,28552.0,0.14897954]
[1680685765341,0.7990322,28553.0,28552.0,0.23293232]
[1680685765577,0.7990322,28553.0,28552.0,0.23299232]
[1680685765922,0.7990322,28553.0,28552.0,0.14897954]
[1680685766155,0.7990322,28553.0,28552.0,0.23293238]
[1680685766343,0.7990322,28553.0,28552.0,0.23299238]
[1680685768503,0.79892971,28553.0,28552.0,0.23299238]
[1680685768731,0.79892971,28553.0,28552.0,0.14903954]
[1680685768955,0.79892971,28553.0,28552.0,0.14891954]
[1680685771058,0.40915311,28553.0,28552.0,0.14891954]
[1680685771749,0.40915311,28553.0,28552.0,0.23293314]
[1680685771959,0.40915311,28553.0,28552.0,0.23305314]
[1680685773312,0.40915311,28553.0,28552.0,0.23299314]
[1680685773528,0.41765311,28553.0,28552.0,0.23299314]
[1680685774239,0.41765311,28553.0,28552.0,0.23305314]
[1680685774863,0.41765311,28553.0,28552.0,0.14897954]
[1680685775077,0.41765311,28553.0,28552.0,0.14891954]
[1680685775910,0.41765311,28553.0,28552.0,0.232933]
[1680685776119,0.41765311,28553.0,28552.0,0.233053]
[1680685776650,0.41765311,28553.0,28552.0,0.232993]
[1680685777061,0.41765311,28553.0,28552.0,0.14897954]
[1680685777272,0.41765311,28553.0,28552.0,0.14891954]
[1680685777917,0.0288,28553.0,28552.0,0.14891954]
[1680685778130,0.0288,28553.0,28552.0,0.17109427]
[1680685778773,0.02868991,28553.0,28552.0,0.17109427]
[1680685778982,0.0085,28553.0,28552.0,0.17109427]
[1680685783478,0.00841481,28553.0,28552.0,0.17109427]
[1680685788934,0.00829515,28553.0,28552.0,0.17109427]
[1680685798719,0.00829515,28553.0,28552.0,0.34437748]
[1680685798970,0.00829515,28553.0,28552.0,0.21310494]
[1680685799207,0.00829515,28553.0,28552.0,0.21835794]
[1680685799450,0.0095,28555.0,28552.0,0.21310494]
[1680685799678,0.36421056,28555.0,28553.0,0.2100321]
[1680685799923,0.36437082,28555.0,28553.0,0.2100321]
[1680685800154,0.35887082,28555.0,28553.0,0.2100321]
[1680685800652,0.35887082,28555.0,28554.0,0.0572]
[1680685800888,0.37087082,28555.0,28554.0,0.0572]
[1680685801372,0.37937082,28555.0,28554.0,0.0572]
[1680685801938,0.36737082,28555.0,28554.0,0.0572]
[1680685802423,0.02466026,28555.0,28554.0,0.08142293]
[1680685802424,0.01616026,28555.0,28554.0,0.17068877]
[1680685802671,0.016,28555.0,28554.0,0.21469519]
[1680685802918,0.004,28555.0,28554.0,0.21269519]
[1680685803165,0.004,28555.0,28554.0,0.21469519]
[1680685803166,0.015,28555.0,28554.0,0.21469519]
[1680685803385,0.015,28555.0,28554.0,0.21269519]
[1680685803635,0.004,28555.0,28554.0,0.3807254]
[1680685803882,0.015,28555.0,28554.0,0.3827254]
[1680685804130,0.015,28555.0,28554.0,0.3774724]
[1680685804617,0.011,28555.0,28554.0,0.29340987]
[1680685804866,0.011,28555.0,28554.0,0.20944219]
[1680685805551,0.38120838,28557.0,28554.0,0.20744219]
[1680685805803,0.011,28555.0,28554.0,0.20944219]
[1680685806294,0.011,28555.0,28554.0,0.19047226]
[1680685806526,0.05315321,28558.0,28554.0,0.20746176]
[1680685806774,0.011,28557.0,28555.0,0.08918506]
[1680685807012,0.05315321,28558.0,28555.0,0.08918506]
[1680685807270,0.05315321,28558.0,28556.0,0.08393306]
[1680685807778,0.004,28558.0,28556.0,0.14573306]
[1680685809239,0.005,28557.0,28556.0,0.14573306]
[1680685809481,0.39341817,28559.0,28557.0,0.01823756]
[1680685809717,0.01,28558.0,28557.0,0.01823756]
[1680685809987,0.39325791,28559.0,28557.0,0.01823756]
[1680685810221,0.005,28558.0,28557.0,0.01823756]
[1680685810479,0.39325791,28559.0,28557.0,0.02023756]
[1680685810716,0.40325791,28559.0,28557.0,0.08143756]
[1680685811477,0.39325791,28559.0,28557.0,0.07943756]
[1680685811695,0.40325791,28559.0,28557.0,0.08043756]
[1680685811904,0.39325791,28559.0,28557.0,0.07943756]
[1680685812129,0.40325791,28559.0,28557.0,0.08143756]
[1680685812361,0.40325791,28559.0,28557.0,0.07943756]
[1680685812602,0.40325791,28559.0,28557.0,0.08043756]
[1680685813048,0.39325791,28559.0,28557.0,0.07943756]
[1680685813265,0.40325791,28559.0,28557.0,0.08143756]
[1680685813474,0.39325791,28559.0,28557.0,0.07943756]
[1680685813690,0.39325791,28559.0,28557.0,0.01823756]
[1680685814795,0.40325791,28559.0,28557.0,0.01923756]
[1680685814999,0.39325791,28559.0,28557.0,0.01823756]
[1680685815212,0.40325791,28559.0,28557.0,0.02023756]
[1680685815423,0.39325791,28559.0,28557.0,0.01823756]
[1680685815863,0.40325791,28559.0,28557.0,0.01923756]
[1680685816101,0.39325791,28559.0,28557.0,0.01823756]
[1680685816321,0.39325791,28559.0,28557.0,0.02023756]
[1680685816322,0.40325791,28559.0,28557.0,0.02023756]
[1680685816513,0.39325791,28559.0,28557.0,0.01823756]
[1680685816736,0.40325791,28559.0,28557.0,0.01923756]
[1680685817651,0.39325791,28559.0,28557.0,0.01823756]
[1680685817846,0.40325791,28559.0,28557.0,0.02023756]
[1680685818017,0.39325791,28559.0,28557.0,0.01823756]
[1680685818237,0.40325791,28559.0,28557.0,0.01923756]
[1680685818432,0.39325791,28559.0,28557.0,0.01823756]
[1680685818786,0.40325791,28559.0,28557.0,0.02023756]
[1680685819052,0.39325791,28559.0,28557.0,0.01823756]
[1680685819186,0.40325791,28559.0,28557.0,0.01923756]
[1680685819593,0.40316274,28559.0,28557.0,0.01923756]
[1680685820435,0.39316274,28559.0,28557.0,0.01823756]
[1680685820648,0.40316274,28559.0,28557.0,0.02023756]
[1680685820860,0.39316274,28559.0,28557.0,0.01823756]
[1680685821280,0.40316274,28559.0,28557.0,0.001]
[1680685821496,0.39316274,28559.0,28555.0,0.11057665]
[1680685821712,0.40316274,28559.0,28557.0,0.002]
[1680685821923,0.40316274,28559.0,28556.0,0.02327077]
[1680685821924,0.39316274,28559.0,28556.0,0.02327077]
[1680685822138,0.40316274,28559.0,28557.0,0.001]
[1680685823208,0.39316274,28559.0,28556.0,0.02327077]
[1680685823431,0.403323,28559.0,28556.0,0.02427077]
[1680685823640,0.393323,28559.0,28556.0,0.02327077]
[1680685823828,0.403323,28559.0,28557.0,0.001]
[1680685824029,0.39316274,28559.0,28556.0,0.02327077]
[1680685824241,0.40316274,28559.0,28556.0,0.02427077]
[1680685825013,0.39316274,28559.0,28556.0,0.02327077]
[1680685826229,0.40316274,28559.0,28557.0,0.001]
[1680685826444,0.39316274,28559.0,28556.0,0.02327077]
[1680685826661,0.40316274,28559.0,28556.0,0.02427077]
[1680685826883,0.39316274,28559.0,28556.0,0.02327077]
[1680685827053,0.39816274,28559.0,28556.0,0.02327077]
[1680685827255,0.39316274,28559.0,28557.0,0.02256735]
[1680685827470,0.40316274,28559.0,28557.0,0.02256735]
[1680685827896,0.39316274,28559.0,28557.0,0.02256735]
[1680685828117,0.39816274,28559.0,28557.0,0.02256735]
[1680685830865,0.39305702,28559.0,28558.0,0.0768]
[1680685831126,0.40505702,28559.0,28558.0,0.0768]
[1680685832227,0.39305702,28559.0,28558.0,0.0768]
[1680685832516,0.40405702,28559.0,28558.0,0.0768]
[1680685832999,0.41605702,28559.0,28558.0,0.0788]
[1680685833242,0.40405702,28559.0,28558.0,0.0768]
[1680685833488,0.41605702,28559.0,28558.0,0.0788]
[1680685833696,0.40405702,28559.0,28558.0,0.0768]
[1680685833906,0.41605702,28559.0,28558.0,0.0788]
[1680685834342,0.40405702,28559.0,28558.0,0.0768]
[1680685834556,0.41605702,28559.0,28558.0,0.0788]
[1680685835380,0.40405702,28559.0,28558.0,0.0768]
[1680685835515,0.41605702,28559.0,28558.0,0.0788]
[1680685835725,0.40405702,28559.0,28558.0,0.0768]
[1680685835984,0.41605702,28559.0,28558.0,0.0788]
[1680685836124,0.41605702,28559.0,28558.0,0.0768]
[1680685836364,0.40405702,28559.0,28558.0,0.0768]
[1680685836584,0.41605702,28559.0,28558.0,0.0788]
[1680685836785,0.40405702,28559.0,28558.0,0.0768]
[1680685836989,0.41605702,28559.0,28558.0,0.0788]
[1680685837164,0.40405702,28559.0,28558.0,0.0768]
[1680685838227,0.41605702,28559.0,28558.0,0.0788]
[1680685838437,0.40405702,28559.0,28558.0,0.0768]
[1680685838641,0.41605702,28559.0,28558.0,0.0788]
[1680685839064,0.40505702,28559.0,28558.0,0.0788]
[1680685839417,0.39305702,28559.0,28558.0,0.0768]
[1680685839620,0.40505702,28559.0,28558.0,0.0788]
[1680685839860,0.39305702,28559.0,28558.0,0.0768]
[1680685840133,0.40505702,28559.0,28558.0,0.0788]
[1680685840539,0.40493823,28559.0,28558.0,0.0788]